[Event "Titled Tuesday Blitz March 28 Early 2023"]
[White "Gronnestad, Anita"]
[Black "Lenaerts, Lennert"]
[WhiteFideId "1502972"]
[BlackFideId "211435"]
[WhiteElo "1939"]
[BlackElo "2334"]
[Result "0-1"]
[Round "05"]
[TimeControl "180+2"]
[Date "2023.03.28"]
[WhiteClock "0:00:20"]
[BlackClock "0:01:17"]

1. d4 {[%clk 0:02:58]}  d5 {[%clk 0:02:58]} 2. c4 {[%clk 0:02:58]}  c6 {[%clk 0:02:57]} 3. Nf3 {[%clk 0:02:59]}  Nf6 {[%clk 0:02:56]} 4. Nc3 {[%clk 0:02:59]}  dxc4 {[%clk 0:02:57]} 5. a4 {[%clk 0:02:59]}  Bf5 {[%clk 0:02:56]} 6. e3 {[%clk 0:02:59]}  e6 {[%clk 0:02:56]} 7. Bxc4 {[%clk 0:02:59]}  Bb4 {[%clk 0:02:57]} 8. O-O {[%clk 0:02:54]}  O-O {[%clk 0:02:57]} 9. Nd2 {[%clk 0:02:54]}  Bg6 {[%clk 0:02:54]} 10. Qe2 {[%clk 0:02:47]}  a5 {[%clk 0:02:49]} 11. Nf3 {[%clk 0:02:43]}  Nbd7 {[%clk 0:02:45]} 12. Bd2 {[%clk 0:02:43]}  Qe7 {[%clk 0:02:44]} 13. Rad1 {[%clk 0:02:40]}  e5 {[%clk 0:02:42]} 14. Ba2 {[%clk 0:02:35]}  exd4 {[%clk 0:02:40]} 15. Nxd4 {[%clk 0:02:34]}  Rad8 {[%clk 0:02:38]} 16. h3 {[%clk 0:02:26]}  Nc5 {[%clk 0:02:38]} 17. Qf3 {[%clk 0:02:23]}  Bxc3 {[%clk 0:02:25]} 18. Bxc3 {[%clk 0:02:23]}  Nxa4 {[%clk 0:02:25]} 19. Bxa5 {[%clk 0:02:20]}  Ra8 {[%clk 0:02:25]} 20. Nf5 {[%clk 0:02:09]}  Bxf5 {[%clk 0:02:20]} 21. Qxf5 {[%clk 0:02:09]}  Nxb2 {[%clk 0:02:11]} 22. Rb1 {[%clk 0:02:06]}  Nd3 {[%clk 0:01:59]} 23. Bc4 {[%clk 0:01:34]}  Ne5 {[%clk 0:01:56]} 24. Rxb7 {[%clk 0:01:07]}  Qxb7 {[%clk 0:01:33]} 25. Qxe5 {[%clk 0:01:07]}  Rfe8 {[%clk 0:01:31]} 26. Qg5 {[%clk 0:01:00]}  Ne4 {[%clk 0:01:30]} 27. Qh5 {[%clk 0:01:01]}  g6 {[%clk 0:01:28]} 28. Qg4 {[%clk 0:00:46]}  Rxa5 {[%clk 0:01:27]} 29. Rc1 {[%clk 0:00:46]}  Rc5 {[%clk 0:01:25]} 30. f3 {[%clk 0:00:43]}  Qb2 {[%clk 0:01:23]} 31. Rd1 {[%clk 0:00:20]}  Qf2+ {[%clk 0:01:19]} 32. Kh2 {[%clk 0:00:20]}  Rxc4 {[%clk 0:01:17]} 33. fxe4 {[%clk 0:00:20]}  Rcxe4 {[%clk 0:01:17]} 0-1


[Site "https://www.chess.com"]

[Event "Titled Tuesday Blitz March 28 Early 2023"]
[White "Budrewicz, Krzysztof"]
[Black "Mrudul Dehankar"]
[WhiteFideId "1127950"]
[BlackFideId "25096990"]
[WhiteElo "2230"]
[BlackElo "2139"]
[Result "0-1"]
[Round "05"]
[TimeControl "180+2"]
[Date "2023.03.28"]
[WhiteClock "0:00:10"]
[BlackClock "0:00:18"]

1. d4 {[%clk 0:03:00]}  Nf6 {[%clk 0:02:59]} 2. c4 {[%clk 0:03:00]}  e6 {[%clk 0:03:00]} 3. g4 {[%clk 0:02:56]}  Nxg4 {[%clk 0:02:57]} 4. e4 {[%clk 0:02:57]}  Qh4 {[%clk 0:02:47]} 5. Qf3 {[%clk 0:02:45]}  Nc6 {[%clk 0:02:44]} 6. Ne2 {[%clk 0:02:41]}  Nb4 {[%clk 0:02:31]} 7. Kd2 {[%clk 0:01:42]}  Nxf2 {[%clk 0:02:17]} 8. Bg2 {[%clk 0:01:41]}  Nxh1 {[%clk 0:02:04]} 9. Bxh1 {[%clk 0:01:41]}  Be7 {[%clk 0:02:05]} 10. a3 {[%clk 0:01:40]}  Bg5+ {[%clk 0:02:03]} 11. Kd1 {[%clk 0:01:33]}  Bxc1 {[%clk 0:01:58]} 12. axb4 {[%clk 0:01:29]}  Bh6 {[%clk 0:01:49]} 13. Nbc3 {[%clk 0:01:28]}  Qxh2 {[%clk 0:01:43]} 14. Kc2 {[%clk 0:01:27]}  O-O {[%clk 0:01:39]} 15. Bg2 {[%clk 0:01:27]}  Qh4 {[%clk 0:01:32]} 16. Rh1 {[%clk 0:01:19]}  Qg5 {[%clk 0:01:32]} 17. Rh5 {[%clk 0:01:14]}  Qg6 {[%clk 0:01:23]} 18. Kb3 {[%clk 0:01:11]}  d6 {[%clk 0:01:14]} 19. Nb5 {[%clk 0:01:11]}  e5 {[%clk 0:01:05]} 20. Nxc7 {[%clk 0:01:08]}  Bg4 {[%clk 0:01:05]} 21. Qd3 {[%clk 0:00:51]}  Qxh5 {[%clk 0:01:02]} 22. Ng3 {[%clk 0:00:47]}  Qh2 {[%clk 0:01:01]} 23. Bf1 {[%clk 0:00:46]}  Rac8 {[%clk 0:00:55]} 24. Nd5 {[%clk 0:00:45]}  Kh8 {[%clk 0:00:54]} 25. dxe5 {[%clk 0:00:43]}  dxe5 {[%clk 0:00:53]} 26. c5 {[%clk 0:00:39]}  Bf4 {[%clk 0:00:51]} 27. Ne2 {[%clk 0:00:34]}  Qf2 {[%clk 0:00:47]} 28. Nec3 {[%clk 0:00:32]}  Qd4 {[%clk 0:00:37]} 29. Qb5 {[%clk 0:00:32]}  b6 {[%clk 0:00:28]} 30. c6 {[%clk 0:00:31]}  Be6 {[%clk 0:00:26]} 31. Bc4 {[%clk 0:00:30]}  a6 {[%clk 0:00:20]} 32. Qxb6 {[%clk 0:00:22]}  Qxb6 {[%clk 0:00:18]} 33. Nxb6 {[%clk 0:00:22]}  Bxc4+ {[%clk 0:00:18]} 34. Nxc4 {[%clk 0:00:20]}  Rxc6 {[%clk 0:00:19]} 35. Na5 {[%clk 0:00:20]}  Rh6 {[%clk 0:00:18]} 36. Nd5 {[%clk 0:00:19]}  Bh2 {[%clk 0:00:18]} 37. Nb7 {[%clk 0:00:17]}  f5 {[%clk 0:00:18]} 38. exf5 {[%clk 0:00:17]}  Rxf5 {[%clk 0:00:18]} 39. Nc5 {[%clk 0:00:17]}  Rf3+ {[%clk 0:00:18]} 40. Ka4 {[%clk 0:00:17]}  Rf2 {[%clk 0:00:17]} 41. Kb3 {[%clk 0:00:12]}  Rh3+ {[%clk 0:00:16]} 42. Kc4 {[%clk 0:00:11]}  Rxb2 {[%clk 0:00:17]} 43. Nxa6 {[%clk 0:00:11]}  Rc2+ {[%clk 0:00:17]} 44. Kb5 {[%clk 0:00:11]}  e4 {[%clk 0:00:17]} 45. Nc5 {[%clk 0:00:10]}  e3 {[%clk 0:00:18]} 46. Nd3 {[%clk 0:00:10]}  e2 {[%clk 0:00:18]} 47. Ne1 {[%clk 0:00:10]}  Rd2 {[%clk 0:00:19]} 48. Nf4 {[%clk 0:00:09]}  Bxf4 {[%clk 0:00:18]} 49. Nf3 {[%clk 0:00:10]}  Rxf3 {[%clk 0:00:18]} 0-1


[Site "https://www.chess.com"]

[Event "Titled Tuesday Blitz March 28 Early 2023"]
[White "Turzo, Attila"]
[Black "Ardila, Oscar Humberto"]
[WhiteFideId "704954"]
[BlackFideId "4404742"]
[WhiteElo "2510"]
[BlackElo "1911"]
[Result "1-0"]
[Round "05"]
[TimeControl "180+2"]
[Date "2023.03.28"]
[WhiteClock "0:00:14"]
[BlackClock "0:00:02"]

1. e4 {[%clk 0:03:00]}  e5 {[%clk 0:02:59]} 2. Nf3 {[%clk 0:03:00]}  Nf6 {[%clk 0:02:59]} 3. Nxe5 {[%clk 0:02:57]}  d6 {[%clk 0:03:00]} 4. Nf3 {[%clk 0:02:57]}  Nxe4 {[%clk 0:03:00]} 5. Nc3 {[%clk 0:02:57]}  Nxc3 {[%clk 0:03:01]} 6. dxc3 {[%clk 0:02:58]}  Be7 {[%clk 0:03:02]} 7. Be3 {[%clk 0:02:57]}  O-O {[%clk 0:03:03]} 8. Qd2 {[%clk 0:02:57]}  Nd7 {[%clk 0:03:03]} 9. O-O-O {[%clk 0:02:54]}  Nf6 {[%clk 0:03:03]} 10. Bd3 {[%clk 0:02:53]}  c5 {[%clk 0:02:57]} 11. c4 {[%clk 0:02:38]}  b5 {[%clk 0:02:56]} 12. cxb5 {[%clk 0:02:37]}  a6 {[%clk 0:02:56]} 13. bxa6 {[%clk 0:02:02]}  Bxa6 {[%clk 0:02:54]} 14. a3 {[%clk 0:02:01]}  Qb6 {[%clk 0:02:53]} 15. Bxa6 {[%clk 0:01:45]}  Rfb8 {[%clk 0:02:50]} 16. c3 {[%clk 0:01:33]}  Rxa6 {[%clk 0:02:49]} 17. Qc2 {[%clk 0:01:32]}  d5 {[%clk 0:02:45]} 18. Ne5 {[%clk 0:01:28]}  Qc7 {[%clk 0:02:32]} 19. f4 {[%clk 0:01:20]}  c4 {[%clk 0:02:30]} 20. Kd2 {[%clk 0:01:09]}  Ne4+ {[%clk 0:02:30]} 21. Ke2 {[%clk 0:01:08]}  Nf6 {[%clk 0:01:55]} 22. Rhe1 {[%clk 0:00:50]}  Bc5 {[%clk 0:01:55]} 23. Bc1 {[%clk 0:00:42]}  Ba7 {[%clk 0:01:48]} 24. g3 {[%clk 0:00:37]}  Qc5 {[%clk 0:01:44]} 25. Kf3 {[%clk 0:00:35]}  Qb5 {[%clk 0:01:33]} 26. Kg2 {[%clk 0:00:31]}  Re6 {[%clk 0:01:21]} 27. Re2 {[%clk 0:00:31]}  Rd8 {[%clk 0:01:09]} 28. Nf3 {[%clk 0:00:28]}  Rxe2+ {[%clk 0:01:06]} 29. Qxe2 {[%clk 0:00:29]}  Re8 {[%clk 0:01:06]} 30. Ne5 {[%clk 0:00:28]}  Ne4 {[%clk 0:01:05]} 31. Qg4 {[%clk 0:00:20]}  f6 {[%clk 0:01:02]} 32. Qd7 {[%clk 0:00:19]}  Qxd7 {[%clk 0:00:35]} 33. Nxd7 {[%clk 0:00:20]}  Nc5 {[%clk 0:00:26]} 34. Nxc5 {[%clk 0:00:19]}  Bxc5 {[%clk 0:00:24]} 35. Kf3 {[%clk 0:00:17]}  Rd8 {[%clk 0:00:20]} 36. Be3 {[%clk 0:00:18]}  Bf8 {[%clk 0:00:18]} 37. Rd2 {[%clk 0:00:14]}  Kf7 {[%clk 0:00:17]} 38. Bb6 {[%clk 0:00:15]}  Rd7 {[%clk 0:00:16]} 39. Ba5 {[%clk 0:00:13]}  Ke6 {[%clk 0:00:16]} 40. Bb4 {[%clk 0:00:13]}  Bxb4 {[%clk 0:00:14]} 41. axb4 {[%clk 0:00:14]}  Ra7 {[%clk 0:00:14]} 42. Ke3 {[%clk 0:00:13]}  Ra1 {[%clk 0:00:14]} 43. Kd4 {[%clk 0:00:13]}  Rb1 {[%clk 0:00:12]} 44. Kc5 {[%clk 0:00:13]}  g5 {[%clk 0:00:09]} 45. fxg5 {[%clk 0:00:13]}  fxg5 {[%clk 0:00:09]} 46. b5 {[%clk 0:00:13]}  Ra1 {[%clk 0:00:07]} 47. Kc6 {[%clk 0:00:13]}  h5 {[%clk 0:00:06]} 48. Re2+ {[%clk 0:00:13]}  Kf7 {[%clk 0:00:05]} 49. b6 {[%clk 0:00:14]}  Ra8 {[%clk 0:00:02]} 50. b7 {[%clk 0:00:14]}  Rb8 {[%clk 0:00:02]} 51. Kc7 {[%clk 0:00:14]}  Rf8 {[%clk 0:00:02]} 52. b8=Q {[%clk 0:00:14]} 1-0


[Site "https://www.chess.com"]

[Event "Titled Tuesday Blitz March 28 Early 2023"]
[White "sebastianmarinp"]
[Black "Ronka, Erik"]
[BlackFideId "505080"]
[WhiteElo "2297"]
[BlackElo "2264"]
[Result "1-0"]
[Round "05"]
[TimeControl "180+2"]
[Date "2023.03.28"]
[WhiteClock "0:00:04"]
[BlackClock "0:00:02"]

1. e4 {[%clk 0:03:00]}  c6 {[%clk 0:02:57]} 2. d4 {[%clk 0:03:00]}  d5 {[%clk 0:02:57]} 3. e5 {[%clk 0:03:00]}  Bf5 {[%clk 0:02:57]} 4. Nf3 {[%clk 0:03:01]}  e6 {[%clk 0:02:57]} 5. Be2 {[%clk 0:03:01]}  c5 {[%clk 0:02:58]} 6. Be3 {[%clk 0:02:59]}  Qb6 {[%clk 0:02:58]} 7. Nc3 {[%clk 0:02:59]}  Nc6 {[%clk 0:02:58]} 8. O-O {[%clk 0:02:49]}  Qxb2 {[%clk 0:02:57]} 9. Qe1 {[%clk 0:02:35]}  cxd4 {[%clk 0:02:56]} 10. Nxd4 {[%clk 0:02:24]}  Bb4 {[%clk 0:02:22]} 11. Ndb5 {[%clk 0:02:18]}  Bxc3 {[%clk 0:01:43]} 12. Nxc3 {[%clk 0:02:12]}  d4 {[%clk 0:01:42]} 13. Nb5 {[%clk 0:02:10]}  dxe3 {[%clk 0:01:05]} 14. Nc7+ {[%clk 0:02:09]}  Kf8 {[%clk 0:01:04]} 15. Nxa8 {[%clk 0:02:06]}  Bxc2 {[%clk 0:01:00]} 16. Qc1 {[%clk 0:01:10]}  exf2+ {[%clk 0:00:53]} 17. Rxf2 {[%clk 0:01:11]}  Qxc1+ {[%clk 0:00:50]} 18. Rxc1 {[%clk 0:01:11]}  Bg6 {[%clk 0:00:51]} 19. Nc7 {[%clk 0:00:53]}  Ke7 {[%clk 0:00:46]} 20. Nb5 {[%clk 0:00:45]}  Nh6 {[%clk 0:00:40]} 21. Nd6 {[%clk 0:00:43]}  Nxe5 {[%clk 0:00:37]} 22. Nxb7 {[%clk 0:00:41]}  Rb8 {[%clk 0:00:26]} 23. Rc7+ {[%clk 0:00:39]}  Kf8 {[%clk 0:00:24]} 24. h3 {[%clk 0:00:32]}  Nf5 {[%clk 0:00:22]} 25. g4 {[%clk 0:00:22]}  Nd4 {[%clk 0:00:22]} 26. Nd6 {[%clk 0:00:17]}  a5 {[%clk 0:00:14]} 27. Rc8+ {[%clk 0:00:12]}  Rxc8 {[%clk 0:00:15]} 28. Nxc8 {[%clk 0:00:13]}  Ke8 {[%clk 0:00:14]} 29. Nb6 {[%clk 0:00:13]}  Kd8 {[%clk 0:00:13]} 30. Na4 {[%clk 0:00:07]}  Be4 {[%clk 0:00:11]} 31. Bf1 {[%clk 0:00:05]}  Bd5 {[%clk 0:00:11]} 32. Bg2 {[%clk 0:00:05]}  Bxg2 {[%clk 0:00:06]} 33. Kxg2 {[%clk 0:00:06]}  Kc7 {[%clk 0:00:07]} 34. Kg3 {[%clk 0:00:06]}  Kc6 {[%clk 0:00:07]} 35. Nc3 {[%clk 0:00:05]}  Kc5 {[%clk 0:00:05]} 36. Ne4+ {[%clk 0:00:05]}  Kb4 {[%clk 0:00:05]} 37. Ng5 {[%clk 0:00:06]}  f6 {[%clk 0:00:05]} 38. Nxh7 {[%clk 0:00:06]}  Ka3 {[%clk 0:00:04]} 39. Nf8 {[%clk 0:00:05]}  Nd3 {[%clk 0:00:03]} 40. Rd2 {[%clk 0:00:04]}  Nb5 {[%clk 0:00:01]} 41. Rxd3+ {[%clk 0:00:04]}  Kxa2 {[%clk 0:00:02]} 42. Rd7 {[%clk 0:00:04]}  a4 {[%clk 0:00:03]} 43. Rxg7 {[%clk 0:00:04]}  a3 {[%clk 0:00:03]} 44. Rb7 {[%clk 0:00:05]}  Nc3 {[%clk 0:00:03]} 45. Nxe6 {[%clk 0:00:04]}  Ka1 {[%clk 0:00:02]} 46. Nd4 {[%clk 0:00:04]}  a2 {[%clk 0:00:02]} 47. Nc2# {[%clk 0:00:04]} 1-0


[Site "https://www.chess.com"]

[Event "Titled Tuesday Blitz March 28 Early 2023"]
[White "Jumanov, Elbek"]
[Black "Bogaudinov, Rushan"]
[WhiteFideId "14202905"]
[BlackFideId "4129288"]
[WhiteElo "2055"]
[BlackElo "1949"]
[Result "1-0"]
[Round "05"]
[TimeControl "180+2"]
[Date "2023.03.28"]
[WhiteClock "0:00:09"]
[BlackClock "0:00:01"]

1. c4 {[%clk 0:02:59]}  Nf6 {[%clk 0:02:59]} 2. Nf3 {[%clk 0:02:57]}  d5 {[%clk 0:02:59]} 3. cxd5 {[%clk 0:02:56]}  Nxd5 {[%clk 0:02:59]} 4. Nc3 {[%clk 0:02:57]}  Nxc3 {[%clk 0:02:59]} 5. bxc3 {[%clk 0:02:57]}  e6 {[%clk 0:02:59]} 6. g3 {[%clk 0:02:57]}  b6 {[%clk 0:02:58]} 7. Bg2 {[%clk 0:02:58]}  Bb7 {[%clk 0:02:58]} 8. O-O {[%clk 0:02:57]}  Be7 {[%clk 0:02:59]} 9. d3 {[%clk 0:02:55]}  O-O {[%clk 0:02:58]} 10. a4 {[%clk 0:02:52]}  c5 {[%clk 0:02:48]} 11. a5 {[%clk 0:02:51]}  Nc6 {[%clk 0:02:46]} 12. axb6 {[%clk 0:02:50]}  axb6 {[%clk 0:02:46]} 13. Bf4 {[%clk 0:02:41]}  Bf6 {[%clk 0:02:42]} 14. Qb3 {[%clk 0:02:37]}  Rxa1 {[%clk 0:02:34]} 15. Rxa1 {[%clk 0:02:36]}  e5 {[%clk 0:02:24]} 16. Nxe5 {[%clk 0:02:33]}  Bxe5 {[%clk 0:02:09]} 17. Bxe5 {[%clk 0:02:32]}  Re8 {[%clk 0:01:56]} 18. Bf4 {[%clk 0:02:15]}  Rxe2 {[%clk 0:01:48]} 19. Bd5 {[%clk 0:01:56]}  Qe7 {[%clk 0:01:35]} 20. Qxb6 {[%clk 0:01:52]}  g5 {[%clk 0:01:17]} 21. Bc7 {[%clk 0:01:21]}  Qf6 {[%clk 0:01:02]} 22. Rf1 {[%clk 0:01:14]}  Ba8 {[%clk 0:00:57]} 23. Qxc5 {[%clk 0:00:56]}  Rc2 {[%clk 0:00:36]} 24. d4 {[%clk 0:00:44]}  h5 {[%clk 0:00:34]} 25. Qa3 {[%clk 0:00:29]}  Bb7 {[%clk 0:00:16]} 26. Qb3 {[%clk 0:00:29]}  Nxd4 {[%clk 0:00:15]} 27. Qxb7 {[%clk 0:00:19]}  Rxc3 {[%clk 0:00:14]} 28. Qb8+ {[%clk 0:00:15]}  Kh7 {[%clk 0:00:14]} 29. Be4+ {[%clk 0:00:15]}  Nf5 {[%clk 0:00:13]} 30. Be5 {[%clk 0:00:15]}  Rb3 {[%clk 0:00:09]} 31. Bxf6 {[%clk 0:00:14]}  Rxb8 {[%clk 0:00:09]} 32. Bxf5+ {[%clk 0:00:15]}  Kh6 {[%clk 0:00:09]} 33. h4 {[%clk 0:00:15]}  gxh4 {[%clk 0:00:08]} 34. gxh4 {[%clk 0:00:15]}  Rb5 {[%clk 0:00:09]} 35. Bg5+ {[%clk 0:00:15]}  Kg7 {[%clk 0:00:10]} 36. Be4 {[%clk 0:00:15]}  f6 {[%clk 0:00:10]} 37. Be3 {[%clk 0:00:13]}  Rb4 {[%clk 0:00:10]} 38. Bf3 {[%clk 0:00:13]}  Rxh4 {[%clk 0:00:11]} 39. Kg2 {[%clk 0:00:13]}  Rc4 {[%clk 0:00:11]} 40. Rh1 {[%clk 0:00:13]}  Kg6 {[%clk 0:00:11]} 41. Rxh5 {[%clk 0:00:12]}  Rc3 {[%clk 0:00:08]} 42. Rh6+ {[%clk 0:00:13]}  Kf5 {[%clk 0:00:08]} 43. Kg3 {[%clk 0:00:13]}  Rc4 {[%clk 0:00:07]} 44. Rh5+ {[%clk 0:00:12]}  Kg6 {[%clk 0:00:07]} 45. Rh6+ {[%clk 0:00:13]}  Kf5 {[%clk 0:00:07]} 46. Rh4 {[%clk 0:00:13]}  Rc8 {[%clk 0:00:06]} 47. Rf4+ {[%clk 0:00:14]}  Kg6 {[%clk 0:00:06]} 48. Rg4+ {[%clk 0:00:14]}  Kf5 {[%clk 0:00:06]} 49. Be4+ {[%clk 0:00:14]}  Ke6 {[%clk 0:00:06]} 50. f4 {[%clk 0:00:14]}  Rc5 {[%clk 0:00:06]} 51. Kf3 {[%clk 0:00:13]}  f5 {[%clk 0:00:06]} 52. Rg6+ {[%clk 0:00:14]}  Kf7 {[%clk 0:00:07]} 53. Bxf5 {[%clk 0:00:14]}  Rxf5 {[%clk 0:00:07]} 54. Rg5 {[%clk 0:00:15]}  Rf6 {[%clk 0:00:07]} 55. Bd4 {[%clk 0:00:15]}  Rc6 {[%clk 0:00:08]} 56. Ke4 {[%clk 0:00:15]}  Rc4 {[%clk 0:00:08]} 57. Rg7+ {[%clk 0:00:15]}  Ke6 {[%clk 0:00:08]} 58. f5+ {[%clk 0:00:15]}  Kd6 {[%clk 0:00:08]} 59. Rg8 {[%clk 0:00:12]}  Ke7 {[%clk 0:00:08]} 60. Rg7+ {[%clk 0:00:12]}  Kf8 {[%clk 0:00:08]} 61. Ra7 {[%clk 0:00:12]}  Rc6 {[%clk 0:00:08]} 62. Ke5 {[%clk 0:00:12]}  Rh6 {[%clk 0:00:07]} 63. Be3 {[%clk 0:00:12]}  Rc6 {[%clk 0:00:07]} 64. Bd4 {[%clk 0:00:11]}  Ke8 {[%clk 0:00:06]} 65. f6 {[%clk 0:00:10]}  Rc8 {[%clk 0:00:04]} 66. Kd5 {[%clk 0:00:09]}  Kf8 {[%clk 0:00:04]} 67. Bc5+ {[%clk 0:00:08]}  Kg8 {[%clk 0:00:03]} 68. f7+ {[%clk 0:00:09]}  Kh7 {[%clk 0:00:01]} 69. f8=Q+ {[%clk 0:00:09]} 1-0


[Site "https://www.chess.com"]

[Event "Titled Tuesday Blitz March 28 Early 2023"]
[White "Schut, Han"]
[Black "Garv Gaur"]
[WhiteFideId "1005561"]
[BlackFideId "45030839"]
[WhiteElo "2024"]
[BlackElo "2068"]
[Result "0-1"]
[Round "05"]
[TimeControl "180+2"]
[Date "2023.03.28"]
[WhiteClock "0:00:09"]
[BlackClock "0:00:49"]

1. e4 {[%clk 0:03:00]}  g6 {[%clk 0:02:56]} 2. d4 {[%clk 0:03:00]}  Bg7 {[%clk 0:02:52]} 3. Nc3 {[%clk 0:03:01]}  d5 {[%clk 0:02:52]} 4. e5 {[%clk 0:02:53]}  c6 {[%clk 0:02:50]} 5. f4 {[%clk 0:02:54]}  f6 {[%clk 0:02:46]} 6. Nf3 {[%clk 0:02:53]}  Nh6 {[%clk 0:02:40]} 7. h4 {[%clk 0:02:32]}  Bg4 {[%clk 0:02:37]} 8. h5 {[%clk 0:02:32]}  Bxh5 {[%clk 0:02:33]} 9. Rxh5 {[%clk 0:02:28]}  gxh5 {[%clk 0:02:33]} 10. Be3 {[%clk 0:02:22]}  Ng4 {[%clk 0:02:31]} 11. Bg1 {[%clk 0:02:18]}  fxe5 {[%clk 0:02:31]} 12. Nxe5 {[%clk 0:02:12]}  O-O {[%clk 0:02:22]} 13. g3 {[%clk 0:01:59]}  Nd7 {[%clk 0:02:18]} 14. Nxg4 {[%clk 0:01:53]}  hxg4 {[%clk 0:02:19]} 15. Qxg4 {[%clk 0:01:53]}  Nf6 {[%clk 0:02:18]} 16. Qh4 {[%clk 0:01:38]}  e6 {[%clk 0:01:53]} 17. Qh3 {[%clk 0:01:27]}  Qe8 {[%clk 0:01:40]} 18. O-O-O {[%clk 0:01:22]}  Qh5 {[%clk 0:01:40]} 19. Qxe6+ {[%clk 0:01:18]}  Kh8 {[%clk 0:01:41]} 20. Bd3 {[%clk 0:00:33]}  Rae8 {[%clk 0:01:37]} 21. Qd6 {[%clk 0:00:32]}  Ne4 {[%clk 0:01:31]} 22. Nxe4 {[%clk 0:00:20]}  dxe4 {[%clk 0:01:32]} 23. Bc4 {[%clk 0:00:20]}  e3 {[%clk 0:01:29]} 24. Re1 {[%clk 0:00:19]}  Qf3 {[%clk 0:01:23]} 25. Bd3 {[%clk 0:00:17]}  Qxg3 {[%clk 0:01:20]} 26. Kd1 {[%clk 0:00:15]}  e2+ {[%clk 0:01:14]} 27. Kd2 {[%clk 0:00:14]}  Rxf4 {[%clk 0:00:51]} 28. Qd7 {[%clk 0:00:14]}  Rff8 {[%clk 0:00:51]} 29. c3 {[%clk 0:00:13]}  Qxe1+ {[%clk 0:00:47]} 30. Kxe1 {[%clk 0:00:12]}  Rf1+ {[%clk 0:00:48]} 31. Kd2 {[%clk 0:00:08]}  e1=Q+ {[%clk 0:00:49]} 32. Kc2 {[%clk 0:00:09]}  Qd1# {[%clk 0:00:49]} 0-1


[Site "https://www.chess.com"]

[Event "Titled Tuesday Blitz March 28 Early 2023"]
[White "Abrosimov, Vladimir"]
[Black "Osinenko, Anton"]
[WhiteFideId "4166892"]
[BlackFideId "4158970"]
[WhiteElo "2336"]
[BlackElo "2294"]
[Result "0-1"]
[Round "05"]
[TimeControl "180+2"]
[Date "2023.03.28"]
[WhiteClock "0:00:25"]
[BlackClock "0:00:46"]

1. c4 {[%clk 0:03:00]}  c5 {[%clk 0:02:57]} 2. Nc3 {[%clk 0:03:00]}  Nf6 {[%clk 0:02:57]} 3. g3 {[%clk 0:03:01]}  e6 {[%clk 0:02:57]} 4. Bg2 {[%clk 0:03:00]}  d5 {[%clk 0:02:58]} 5. cxd5 {[%clk 0:03:00]}  Nxd5 {[%clk 0:02:59]} 6. e3 {[%clk 0:02:59]}  Nc6 {[%clk 0:02:59]} 7. Nge2 {[%clk 0:02:59]}  Be7 {[%clk 0:02:58]} 8. O-O {[%clk 0:02:58]}  O-O {[%clk 0:02:59]} 9. d4 {[%clk 0:02:59]}  cxd4 {[%clk 0:02:59]} 10. Nxd4 {[%clk 0:02:59]}  Nxd4 {[%clk 0:02:51]} 11. Nxd5 {[%clk 0:02:54]}  exd5 {[%clk 0:02:47]} 12. Qxd4 {[%clk 0:02:53]}  Be6 {[%clk 0:02:47]} 13. Bd2 {[%clk 0:02:47]}  Bf6 {[%clk 0:02:45]} 14. Qb4 {[%clk 0:02:47]}  Qd7 {[%clk 0:02:32]} 15. Bc3 {[%clk 0:02:45]}  a5 {[%clk 0:02:27]} 16. Qa3 {[%clk 0:02:43]}  Be7 {[%clk 0:02:25]} 17. Qb3 {[%clk 0:02:29]}  d4 {[%clk 0:02:25]} 18. Qxb7 {[%clk 0:02:23]}  Qxb7 {[%clk 0:02:24]} 19. Bxb7 {[%clk 0:02:22]}  dxc3 {[%clk 0:02:21]} 20. Bxa8 {[%clk 0:02:21]}  cxb2 {[%clk 0:02:21]} 21. Rab1 {[%clk 0:02:21]}  Rxa8 {[%clk 0:02:21]} 22. Rxb2 {[%clk 0:02:21]}  Bf6 {[%clk 0:02:18]} 23. Rc2 {[%clk 0:02:18]}  g6 {[%clk 0:02:17]} 24. e4 {[%clk 0:02:12]}  a4 {[%clk 0:02:16]} 25. f4 {[%clk 0:02:07]}  Bd4+ {[%clk 0:02:15]} 26. Kg2 {[%clk 0:02:06]}  a3 {[%clk 0:02:16]} 27. f5 {[%clk 0:02:03]}  gxf5 {[%clk 0:02:17]} 28. exf5 {[%clk 0:02:02]}  Bd5+ {[%clk 0:02:17]} 29. Kh3 {[%clk 0:02:03]}  Bb2 {[%clk 0:02:17]} 30. g4 {[%clk 0:01:51]}  Bxa2 {[%clk 0:02:16]} 31. g5 {[%clk 0:01:50]}  h6 {[%clk 0:02:13]} 32. g6 {[%clk 0:01:38]}  fxg6 {[%clk 0:02:07]} 33. fxg6 {[%clk 0:01:39]}  Bb3 {[%clk 0:01:59]} 34. Rcf2 {[%clk 0:01:30]}  Bd4 {[%clk 0:01:44]} 35. Rf4 {[%clk 0:01:18]}  Be5 {[%clk 0:01:07]} 36. Re4 {[%clk 0:01:14]}  Bb2 {[%clk 0:01:08]} 37. Re3 {[%clk 0:00:58]}  Bc2 {[%clk 0:00:59]} 38. Re7 {[%clk 0:00:32]}  a2 {[%clk 0:00:49]} 39. Ree1 {[%clk 0:00:32]}  a1=Q {[%clk 0:00:45]} 40. Rxa1 {[%clk 0:00:32]}  Bxa1 {[%clk 0:00:45]} 41. Kg4 {[%clk 0:00:24]}  Bxg6 {[%clk 0:00:43]} 42. h4 {[%clk 0:00:23]}  Ra4+ {[%clk 0:00:43]} 43. Kh3 {[%clk 0:00:22]}  Kg7 {[%clk 0:00:43]} 44. Kg3 {[%clk 0:00:21]}  Bf6 {[%clk 0:00:43]} 45. h5 {[%clk 0:00:20]}  Bxh5 {[%clk 0:00:43]} 46. Rb1 {[%clk 0:00:21]}  Ra3+ {[%clk 0:00:40]} 47. Kf4 {[%clk 0:00:20]}  Rf3+ {[%clk 0:00:40]} 48. Ke4 {[%clk 0:00:17]}  Bg6+ {[%clk 0:00:41]} 49. Kxf3 {[%clk 0:00:18]}  Bxb1 {[%clk 0:00:42]} 50. Kg3 {[%clk 0:00:19]}  Kg6 {[%clk 0:00:42]} 51. Kh3 {[%clk 0:00:19]}  h5 {[%clk 0:00:43]} 52. Kg3 {[%clk 0:00:20]}  h4+ {[%clk 0:00:44]} 53. Kh3 {[%clk 0:00:21]}  Bf5+ {[%clk 0:00:45]} 54. Kg2 {[%clk 0:00:21]}  Kg5 {[%clk 0:00:46]} 55. Kh2 {[%clk 0:00:22]}  Kg4 {[%clk 0:00:46]} 56. Kg2 {[%clk 0:00:23]}  h3+ {[%clk 0:00:47]} 57. Kh2 {[%clk 0:00:24]}  Be5+ {[%clk 0:00:48]} 58. Kg1 {[%clk 0:00:25]}  Kg3 {[%clk 0:00:47]} 59. Kh1 {[%clk 0:00:25]}  Bd3 {[%clk 0:00:45]} 60. Kg1 {[%clk 0:00:25]}  Bd4+ {[%clk 0:00:46]} 61. Kh1 {[%clk 0:00:25]}  Be4# {[%clk 0:00:46]} 0-1


[Site "https://www.chess.com"]